bitfinex/quotes_SOLUSD_20250410
["timestamp","ask_amount","ask_price","bid_price","bid_amount"]
[1744302131583,14.28135888,108.78,108.75,52.78081236]
[1744302131782,67.06217124,108.78,108.72,0.14216157]
[1744302131981,14.28135888,108.78,108.74,53.20729707]
[1744302132300,14.28135888,108.78,108.76,0.42648471]
[1744302132504,14.28135888,108.78,108.77,52.92297393]
[1744302132875,14.28135888,108.78,108.77,71.85694593]
[1744302133073,14.28135888,108.78,108.77,52.92297393]
[1744302134187,14.28135888,108.78,108.77,62.11667393]
[1744302134384,14.28135888,108.78,108.75,18.933972]
[1744302134385,14.28135888,108.78,108.75,52.92297393]
[1744302134590,67.06217124,108.78,108.75,0.14216157]
[1744302134787,67.06217124,108.78,108.74,90.1958]
[1744302135207,14.28135888,108.78,108.74,142.97661236]
[1744302135882,14.28135888,108.78,108.74,90.1958]
[1744302136210,14.28135888,108.78,108.75,52.78081236]
[1744302136712,14.28135888,108.78,108.75,61.97611236]
[1744302137011,14.28135888,108.78,108.77,52.92297393]
[1744302137726,14.28135888,108.78,108.77,0.14216157]
[1744302138010,14.28135888,108.78,108.77,52.92297393]
[1744302138201,14.28135888,108.78,108.77,81.05064593]
[1744302138992,14.28135888,108.78,108.77,62.11667393]
[1744302139391,67.06217124,108.78,108.71,81.0]
[1744302139708,67.06217124,108.78,108.73,18.79181043]
[1744302140008,52.78081236,108.75,108.71,9.1987]
[1744302140406,23.47435888,108.78,108.7,52.78081236]
[1744302140407,9.1937,108.77,108.7,52.78081236]
[1744302140616,52.78081236,108.74,108.7,61.98011236]
[1744302140998,52.78081236,108.73,108.68,81.0]
[1744302141315,52.78081236,108.69,108.67,85.76524392]
[1744302141496,52.78081236,108.7,108.67,94.96724392]
[1744302142286,52.78081236,108.7,108.67,85.76524392]
[1744302142612,57.29936202,108.68,108.64,2.93370933]
[1744302142928,52.78081236,108.66,108.64,2.93370933]
[1744302143085,4.51854966,108.68,108.65,52.92297393]
[1744302143506,4.51854966,108.68,108.64,2.93370933]
[1744302143507,52.78081236,108.66,108.64,2.93370933]
[1744302143689,52.78081236,108.65,108.64,2.93370933]
[1744302144299,105.56162472,108.65,108.64,2.93370933]
[1744302144682,114.76542472,108.65,108.64,2.93370933]
[1744302144884,114.76542472,108.65,108.62,0.03]
[1744302145110,52.78081236,108.63,108.62,0.03]
[1744302145491,52.78081236,108.63,108.58,0.05]
[1744302145702,52.78081236,108.59,108.58,0.05]
[1744302146311,9.207,108.62,108.58,0.05]
[1744302146500,75.79041236,108.65,108.58,0.05]
[1744302146501,52.78081236,108.6,108.58,0.05]
[1744302146690,61.98491236,108.65,108.58,52.83081236]
[1744302146896,52.78081236,108.64,108.59,52.78081236]
[1744302147097,52.78081236,108.65,108.58,0.47648471]
[1744302147405,52.78081236,108.62,108.58,0.05]
[1744302147610,52.78081236,108.61,108.58,0.05]
[1744302148295,52.78081236,108.59,108.58,0.05]
[1744302148892,9.2055,108.63,108.58,0.05]
[1744302149087,52.78081236,108.59,108.58,0.05]
[1744302150019,114.46392472,108.59,108.5,0.14216157]
[1744302150204,8.9023,108.59,108.49,9.2174]
[1744302150515,18.1115,108.59,108.49,0.14216157]
[1744302150692,8.9023,108.59,108.48,32.2637]
[1744302150895,9.3227,108.63,108.53,71.57262279]
[1744302151107,9.3227,108.63,108.55,0.14216157]
[1744302151310,52.78081236,108.58,108.55,0.14216157]
[1744302151524,18.5282,108.63,108.55,19.07613357]
[1744302151726,18.5282,108.63,108.54,0.42648471]
[1744302152023,52.78081236,108.6,108.51,18.933972]
[1744302152220,52.78081236,108.55,108.48,11.4677]
[1744302152397,52.78081236,108.55,108.49,0.14216157]
[1744302152920,61.61661236,108.55,108.47,0.03]
[1744302153419,52.78081236,108.5,108.47,0.03]
[1744302153587,26.0,108.52,108.47,0.03]
[1744302153789,52.78081236,108.5,108.47,0.03]
[1744302153992,26.0,108.52,108.47,0.03]
[1744302154185,52.78081236,108.48,108.47,0.03]
[1744302154410,27.86274886,108.54,108.47,0.03]
[1744302154792,9.2131,108.54,108.47,0.03]
[1744302155196,70.82911236,108.55,108.47,52.81081236]
[1744302155397,8.8358,108.55,108.48,52.78081236]
[1744302155625,17.9143,108.59,108.47,0.03]
[1744302155921,17.9143,108.59,108.49,26.0]
[1744302156215,52.78081236,108.6,108.5,19.07613357]
[1744302156425,52.78081236,108.6,108.53,19.07613357]
[1744302156634,8.8039,108.62,108.55,53.20729707]
[1744302156803,8.8039,108.62,108.54,0.42648471]
[1744302157001,9.2038,108.65,108.54,0.42648471]
[1744302157220,52.78081236,108.59,108.54,0.42648471]
[1744302157411,84.99421236,108.65,108.52,18.0243]
[1744302157616,18.64964886,108.64,108.53,0.42648471]
[1744302157799,52.78081236,108.55,108.51,18.64964886]
[1744302158000,52.78081236,108.56,108.52,0.42648471]
[1744302158220,52.78081236,108.6,108.51,61.99621236]
[1744302158525,9.2089,108.59,108.49,9.2173]
[1744302158725,9.2072,108.61,108.52,0.14216157]
[1744302159021,52.78081236,108.6,108.51,53.20729707]
[1744302159235,9.2072,108.61,108.51,0.42648471]
[1744302159435,37.79495888,108.64,108.51,0.42648471]
[1744302159735,52.78081236,108.57,108.53,0.42648471]
[1744302159934,52.78081236,108.57,108.53,52.78081236]
[1744302160259,52.78081236,108.58,108.54,0.42648471]
[1744302160534,52.78081236,108.57,108.54,0.28432314]
[1744302160707,52.78081236,108.58,108.54,9.63958471]
[1744302161039,52.78081236,108.55,108.5,19.07613357]
[1744302161332,52.78081236,108.54,108.5,0.14216157]
[1744302161501,61.98901236,108.6,108.5,18.79181043]
[1744302161903,61.98901236,108.6,108.51,53.0651355]
[1744302162129,9.2082,108.6,108.51,0.28432314]
[1744302162305,9.2055,108.63,108.54,0.42648471]
[1744302162612,9.2055,108.63,108.56,0.42648471]
[1744302162817,52.78081236,108.58,108.55,9.2123]
[1744302163611,23.48635888,108.64,108.56,53.20729707]
[1744302163826,14.28135888,108.64,108.58,0.42648471]
[1744302164038,14.28135888,108.64,108.58,53.20729707]
[1744302164228,52.78081236,108.62,108.6,0.28432314]
[1744302164415,14.28135888,108.64,108.6,0.28432314]
[1744302164615,52.78081236,108.62,108.6,9.49212314]
[1744302164814,14.28135888,108.64,108.6,9.49212314]
[1744302165253,52.78081236,108.63,108.6,0.28432314]
[1744302165543,14.28135888,108.64,108.6,9.49222314]
[1744302165739,52.78081236,108.63,108.6,9.49222314]
[1744302165913,14.28135888,108.64,108.6,62.2730355]
[1744302166113,67.06217124,108.64,108.6,9.49222314]
[1744302166340,52.78081236,108.63,108.6,9.49222314]
[1744302166526,52.78081236,108.63,108.6,0.28432314]
[1744302166736,14.28135888,108.64,108.6,9.49192314]
[1744302166933,14.28135888,108.64,108.61,0.14216157]
[1744302167142,67.06217124,108.64,108.61,0.14216157]
[1744302167543,14.28135888,108.64,108.61,0.14216157]
[1744302168044,14.28135888,108.64,108.61,52.92297393]
[1744302168237,14.28135888,108.64,108.63,0.14216157]
[1744302168443,14.28135888,108.64,108.63,71.85694593]
[1744302168739,9.11345888,108.64,108.63,171.12074593]
[1744302168913,6.74265888,108.64,108.63,223.90155829]
[1744302169113,4.51043702,108.68,108.64,19.07613357]
[1744302169313,4.51043702,108.68,108.64,100.07613357]
[1744302169550,4.51043702,108.68,108.67,71.85694593]
[1744302169715,57.29124938,108.68,108.65,19.07613357]
[1744302169914,4.51043702,108.68,108.65,19.07613357]
[1744302170137,52.78081236,108.67,108.64,81.0]
[1744302170337,4.51043702,108.68,108.64,19.07613357]
[1744302170641,4.51043702,108.68,108.64,81.06124593]
[1744302170817,4.51043702,108.68,108.66,71.85694593]
[1744302171018,4.51043702,108.68,108.66,19.07613357]
[1744302171236,4.51043702,108.68,108.67,19.07613357]
[1744302171619,4.51043702,108.68,108.67,0.42648471]
[1744302171825,4.51043702,108.68,108.67,19.07613357]
[1744302172365,4.51043702,108.68,108.67,0.42648471]
[1744302172643,4.51043702,108.68,108.66,0.14216157]
[1744302172869,4.51043702,108.68,108.66,0.42648471]
[1744302173563,4.51043702,108.68,108.67,71.85694593]
[1744302173728,4.36833702,108.68,108.67,71.85694593]
[1744302173924,4.36833702,108.68,108.67,81.29224593]
[1744302174125,0.063,108.69,108.68,0.42648471]
[1744302174324,0.063,108.69,108.68,71.85694593]
[1744302175067,0.063,108.69,108.68,81.05824593]
[1744302175855,0.063,108.69,108.68,28.27743357]
[1744302176144,0.063,108.69,108.68,81.05824593]
[1744302176531,0.063,108.69,108.68,18.79181043]
[1744302176753,0.063,108.69,108.68,27.99311043]
[1744302177042,0.063,108.69,108.67,81.0]
[1744302177248,0.063,108.69,108.68,52.78081236]
[1744302177439,0.063,108.69,108.68,152.85694593]
[1744302179043,0.063,108.69,108.68,162.05824593]
[1744302179257,2.2309,108.76,108.69,100.07613357]
[1744302179548,0.063,108.78,108.72,0.42648471]
[1744302179753,0.063,108.78,108.73,52.78081236]
[1744302180046,52.78081236,108.77,108.72,0.42648471]
[1744302180246,52.78081236,108.75,108.72,0.42648471]
[1744302180445,52.78081236,108.75,108.72,19.07613357]
[1744302180641,52.78081236,108.76,108.72,71.85694593]
[1744302180950,52.78081236,108.75,108.72,19.07613357]
[1744302181123,9.1939,108.77,108.72,19.07613357]
[1744302181323,52.78081236,108.75,108.72,19.07613357]
[1744302181630,9.2562,108.78,108.71,81.0]
[1744302181830,52.78081236,108.74,108.7,9.34166157]
[1744302182239,9.2562,108.78,108.72,0.14216157]
[1744302182240,32.2383,108.78,108.72,0.14216157]
[1744302182434,52.78081236,108.74,108.72,0.42648471]
[1744302182728,52.78081236,108.73,108.7,81.0]
[1744302182923,52.78081236,108.73,108.69,9.2002]
[1744302182924,32.2383,108.78,108.68,71.57262279]
[1744302183161,0.063,108.78,108.7,0.14216157]
[1744302183334,0.063,108.74,108.72,18.79181043]
[1744302183666,0.063,108.74,108.73,0.42648471]
[1744302183850,0.063,108.74,108.73,71.85694593]
[1744302184152,0.063,108.74,108.73,152.85694593]
[1744302185234,0.063,108.74,108.73,109.27313357]
[1744302186055,0.063,108.74,108.73,162.05394593]
[1744302186267,0.063,108.74,108.73,109.27313357]
[1744302186558,52.84381236,108.74,108.73,81.0]
[1744302187135,0.063,108.74,108.73,81.0]
[1744302187458,52.84381236,108.74,108.73,81.0]
[1744302187755,52.84381236,108.74,108.71,18.79181043]
[1744302187756,0.063,108.74,108.71,18.79181043]
[1744302188133,52.84381236,108.74,108.71,0.14216157]
[1744302188356,52.78081236,108.73,108.71,0.42648471]
[1744302188939,52.78081236,108.72,108.71,0.42648471]
[1744302189142,52.78081236,108.72,108.69,81.0]
[1744302189343,105.56162472,108.7,108.66,9.34516157]
[1744302189641,52.78081236,108.67,108.65,81.0]
[1744302190559,52.78081236,108.7,108.65,99.79181043]
[1744302190560,52.78081236,108.66,108.65,99.79181043]
[1744302190756,52.78081236,108.7,108.65,99.79181043]
[1744302191133,52.78081236,108.67,108.65,108.99561043]
[1744302191339,11.3593,108.72,108.66,18.79181043]
[1744302191541,2.1611,108.72,108.67,0.28432314]
[1744302191877,2.1611,108.72,108.69,0.28432314]
[1744302192238,0.063,108.74,108.71,0.28432314]
[1744302192438,0.063,108.74,108.72,18.79181043]
[1744302192663,0.063,108.74,108.73,0.28432314]
[1744302192851,0.063,108.74,108.73,162.05394593]
[1744302193250,0.063,108.74,108.73,109.27313357]
[1744302193459,0.063,108.74,108.73,162.05394593]
[1744302193963,0.063,108.78,108.75,0.28432314]
[1744302194160,0.063,108.78,108.77,0.28432314]
[1744302194540,52.84381236,108.78,108.76,18.79181043]
[1744302195141,0.063,108.78,108.76,18.79181043]
[1744302195338,52.84381236,108.78,108.76,18.79181043]
[1744302195757,0.063,108.78,108.77,0.28432314]
[1744302195954,0.063,108.78,108.77,152.85694593]
[1744302196154,0.063,108.78,108.77,100.07613357]
[1744302196360,0.063,108.78,108.77,152.85694593]
[1744302196684,0.063,108.78,108.77,100.07613357]
[1744302197538,0.063,108.78,108.77,81.42648471]
[1744302197958,0.063,108.78,108.77,90.62018471]
[1744302198250,0.063,108.78,108.77,162.05064593]
[1744302198450,0.063,108.79,108.77,162.05064593]
[1744302198650,0.063,108.79,108.78,0.28432314]
[1744302199049,52.84381236,108.79,108.76,0.14216157]
[1744302199271,0.063,108.79,108.76,81.0]
[1744302199450,0.063,108.79,108.78,0.28432314]
[1744302199848,52.84381236,108.79,108.78,0.28432314]
[1744302200075,0.063,108.79,108.78,0.28432314]
[1744302200673,0.063,108.79,108.76,81.0]
[1744302200847,0.063,108.79,108.77,0.14216157]
[1744302201045,0.063,108.79,108.77,0.42648471]
[1744302201273,0.063,108.79,108.77,71.85694593]
[1744302201476,0.063,108.79,108.78,18.64964886]
[1744302201778,0.063,108.8,108.79,18.79181043]
[1744302201947,0.063,108.8,108.79,71.85694593]
[1744302202278,0.063,108.8,108.79,205.63775829]
[1744302202466,0.063,108.81,108.8,120.07613357]
[1744302202795,0.063,108.81,108.8,226.13775829]
[1744302202952,0.063,108.83,108.82,127.04634593]
[1744302203158,0.063,108.83,108.82,208.04634593]
[1744302203658,0.063,108.83,108.82,126.07613357]
[1744302203972,0.063,108.83,108.82,178.85694593]
[1744302204181,0.063,108.83,108.81,52.78081236]
[1744302204354,0.063,108.83,108.81,0.14216157]
[1744302204678,0.063,108.83,108.79,81.0]
[1744302204885,0.063,108.83,108.79,0.14216157]
[1744302205175,0.063,108.83,108.82,71.85694593]
[1744302205473,0.063,108.83,108.82,0.42648471]
[1744302205680,0.063,108.83,108.82,71.85694593]
[1744302206371,0.063,108.83,108.82,152.85694593]
[1744302206976,0.063,108.83,108.82,162.04634593]
[1744302209059,0.063,108.83,108.82,100.07613357]
[1744302209263,0.063,108.84,108.83,19.07613357]
[1744302209499,0.063,108.84,108.83,152.85694593]
[1744302209797,0.063,108.85,108.83,225.63775829]
[1744302209999,0.063,108.85,108.84,72.35694593]
[1744302210162,0.063,108.87,108.86,19.07613357]
[1744302210368,0.063,108.87,108.86,152.79394593]
[1744302210871,2.3311,108.95,108.89,18.933972]
[1744302211079,52.84381236,108.93,108.9,0.14216157]
[1744302211266,0.063,108.93,108.92,52.92297393]
[1744302211594,0.063,108.93,108.92,0.42648471]
[1744302212464,0.063,108.93,108.92,71.85694593]
[1744302212670,0.063,108.93,108.92,0.14216157]
[1744302212997,0.063,108.93,108.91,0.42648471]
[1744302213296,0.063,108.93,108.91,19.07613357]
[1744302214078,0.063,108.93,108.91,0.42648471]
[1744302214874,52.84381236,108.93,108.91,19.07613357]
[1744302215198,0.063,108.93,108.91,19.07613357]
[1744302215389,52.78081236,108.92,108.91,19.07613357]
[1744302215580,52.84381236,108.93,108.91,19.07613357]
[1744302215778,0.063,108.93,108.9,80.937]
[1744302215981,52.78081236,108.91,108.9,80.937]
[1744302216296,52.78081236,108.91,108.88,18.79181043]
[1744302216481,0.063,108.93,108.88,18.79181043]
[1744302216681,52.78081236,108.89,108.88,18.79181043]
[1744302216882,52.78081236,108.89,108.86,80.937]
[1744302217198,52.78081236,108.87,108.85,0.14216157]
[1744302217383,52.78081236,108.86,108.85,0.14216157]
[1744302217584,52.78081236,108.9,108.85,0.14216157]
[1744302217792,52.78081236,108.87,108.85,0.14216157]
[1744302217998,52.78081236,108.9,108.84,0.14216157]
[1744302218175,61.96371236,108.9,108.84,0.14216157]
[1744302218371,52.78081236,108.87,108.84,18.79181043]
[1744302218889,52.78081236,108.86,108.83,80.937]
[1744302219095,52.78081236,108.84,108.83,99.72881043]
[1744302219301,52.78081236,108.84,108.8,80.937]
[1744302219499,2.1878,108.89,108.81,19.07613357]
[1744302219800,2.1878,108.89,108.81,99.72881043]
[1744302219975,52.78081236,108.87,108.84,18.64964886]
[1744302220332,52.78081236,108.87,108.83,81.36348471]
[1744302220507,9.1846,108.88,108.83,80.937]
[1744302220799,52.78081236,108.84,108.83,80.937]
[1744302220983,9.1846,108.88,108.81,18.79181043]
[1744302221178,52.78081236,108.84,108.81,18.79181043]
[1744302221381,52.78081236,108.86,108.82,0.28432314]
[1744302221601,52.78081236,108.87,108.84,0.28432314]
[1744302221905,52.78081236,108.88,108.85,18.79181043]
[1744302222201,2.1878,108.89,108.85,18.79181043]
[1744302222202,54.96861236,108.89,108.86,0.28432314]
[1744302222368,2.1878,108.89,108.86,0.28432314]
[1744302222696,0.063,108.93,108.88,53.0651355]
[1744302222995,52.78081236,108.91,108.88,0.42648471]
[1744302223201,52.78081236,108.89,108.87,18.64964886]
[1744302223381,52.78081236,108.91,108.88,0.42648471]
[1744302223696,52.78081236,108.92,108.89,18.64964886]
[1744302223868,2.4002,108.94,108.89,18.64964886]
[1744302224073,52.78081236,108.91,108.89,18.64964886]
[1744302224399,52.78081236,108.91,108.88,81.36348471]
[1744302224878,52.78081236,108.93,108.9,0.42648471]
[1744302225078,2.4002,108.94,108.9,81.36348471]
[1744302225275,55.18101236,108.94,108.91,18.64964886]
[1744302225482,2.4002,108.94,108.91,18.64964886]
[1744302225706,2.4002,108.94,108.92,0.42648471]
[1744302225707,0.063,108.94,108.92,0.42648471]
[1744302226012,0.063,108.94,108.93,71.85694593]
[1744302226181,0.063,108.96,108.95,27.97031043]
[1744302226380,0.063,108.96,108.95,214.61109672]
[1744302226712,0.063,108.96,108.95,234.75325829]
[1744302227007,0.063,108.98,108.97,71.85694593]
[1744302227186,0.063,109.05,109.02,78.78081236]
[1744302227381,0.063,109.05,109.03,52.92297393]
[1744302227711,0.063,109.05,109.04,0.14216157]
[1744302228009,0.063,109.05,109.02,106.874]
[1744302228010,0.063,109.05,109.02,80.874]
[1744302228210,52.84381236,109.05,109.02,80.874]
[1744302228507,52.78081236,109.04,108.99,52.78081236]
[1744302228678,52.78081236,109.02,108.98,18.933972]
[1744302228881,0.063,109.05,108.99,52.92297393]
[1744302229207,52.78081236,109.02,108.99,0.14216157]
[1744302229513,52.78081236,109.0,108.97,80.874]
[1744302230011,62.01391236,109.05,108.98,19.07613357]
[1744302230381,52.78081236,109.01,108.98,19.07613357]
[1744302230585,52.78081236,109.02,108.98,19.07613357]
[1744302230777,62.01391236,109.05,108.98,71.71478436]
[1744302231109,52.78081236,109.02,108.99,0.14216157]
[1744302231279,62.01391236,109.05,108.98,80.89028436]
[1744302231280,52.78081236,109.01,108.98,0.14216157]
[1744302231482,52.78081236,109.0,108.98,0.14216157]
[1744302231691,62.01391236,109.05,108.98,71.71478436]
[1744302232002,52.78081236,109.02,108.98,18.933972]
[1744302232212,52.78081236,109.01,108.98,80.874]
[1744302232414,0.063,109.05,108.99,71.85694593]
[1744302232705,52.78081236,109.01,108.97,0.14216157]
[1744302232907,62.01431236,109.05,108.97,0.14216157]
[1744302233098,84.93951236,109.05,108.95,0.14216157]
[1744302233299,52.78081236,108.97,108.95,0.14216157]
[1744302233503,52.78081236,108.98,108.95,18.79181043]
[1744302233687,62.01431236,109.05,108.98,0.14216157]
[1744302233884,62.01431236,109.05,108.98,0.42648471]
[1744302234105,0.063,109.05,109.02,0.14216157]
[1744302234301,52.84381236,109.05,109.02,0.14216157]
[1744302234606,52.84381236,109.05,109.0,0.28432314]
[1744302234607,52.78081236,109.04,109.0,19.07613357]
[1744302234808,0.063,109.05,109.0,0.14216157]
[1744302235000,0.063,109.05,109.03,52.78081236]
[1744302235191,0.063,109.05,109.01,52.92297393]
[1744302236199,52.84381236,109.05,109.02,18.64964886]
[1744302236507,52.78081236,109.03,109.0,80.874]
[1744302236885,52.78081236,109.04,108.99,53.0651355]
[1744302237082,52.78081236,109.04,109.0,18.79181043]
[1744302237298,52.78081236,109.03,109.0,18.79181043]
[1744302237497,0.063,109.05,109.02,0.14216157]
[1744302237813,52.78081236,109.04,109.01,18.933972]
[1744302238008,52.78081236,109.03,109.0,81.01616157]
[1744302238307,62.01421236,109.05,109.0,80.874]
[1744302238513,52.78081236,109.03,109.0,80.874]
[1744302238813,52.78081236,109.01,108.98,0.14216157]
[1744302239013,62.01421236,109.05,108.92,32.2089]
[1744302239014,52.78081236,108.99,108.92,80.874]
[1744302239317,2.1671,109.0,108.92,52.78081236]
[1744302239489,52.78081236,108.95,108.89,395.894]
[1744302239690,54.94791236,109.0,108.92,52.78081236]
[1744302240017,54.94791236,109.0,108.92,0.14216157]
[1744302240018,52.78081236,108.96,108.92,0.14216157]
[1744302240194,54.94791236,109.0,108.92,52.78081236]
[1744302240396,52.78081236,108.95,108.92,18.79181043]
[1744302240693,9.1751,108.99,108.92,71.57262279]
[1744302240913,11.3418,109.0,108.95,18.79181043]
[1744302241086,52.78081236,108.99,108.95,71.57262279]
[1744302241288,52.78081236,108.99,108.95,18.79181043]
[1744302241490,52.78081236,108.99,108.96,0.28432314]
[1744302241908,52.78081236,108.99,108.95,18.79181043]
[1744302242317,52.78081236,109.03,108.99,18.933972]
[1744302242526,9.1709,109.04,108.99,71.71478436]
[1744302242704,52.78081236,109.03,108.99,71.71478436]
[1744302243104,0.063,109.05,109.0,52.92297393]
[1744302243306,0.063,109.05,109.01,53.0651355]
[1744302243498,0.063,109.05,108.99,80.874]
[1744302243499,52.78081236,109.03,108.99,80.874]
[1744302243701,62.01391236,109.05,108.98,19.07613357]
[1744302243915,62.01391236,109.05,108.98,71.85694593]
[1744302244231,0.063,109.05,108.99,18.64964886]
[1744302244408,0.063,109.05,109.02,19.07613357]
[1744302244604,0.063,109.05,109.03,52.78081236]
[1744302244822,0.063,109.05,109.04,71.85694593]
[1744302245115,0.063,109.05,109.04,19.07613357]
[1744302245326,0.063,109.05,109.04,71.85694593]
[1744302245494,0.063,109.05,109.04,19.07613357]
[1744302245692,0.063,109.05,109.04,71.85694593]
[1744302246001,0.063,109.05,109.04,124.63775829]
[1744302246201,0.063,109.05,109.04,71.85694593]
[1744302246395,0.063,109.05,109.04,28.24703357]
[1744302246809,0.063,109.05,109.04,81.02784593]
[1744302247005,0.063,109.05,109.04,19.07613357]
[1744302247217,0.063,109.05,109.04,71.85694593]
[1744302247400,0.063,109.05,109.0,75.71481236]
[1744302247596,0.063,109.05,109.04,71.85694593]
[1744302248526,0.063,109.05,109.04,161.90184593]
[1744302248707,0.063,109.05,109.04,214.68265829]
[1744302249034,0.063,109.05,109.04,161.90184593]
[1744302250228,0.063,109.05,109.04,99.66581043]
[1744302250404,0.063,109.05,109.04,0.14216157]
[1744302250906,0.063,109.05,109.04,28.24703357]
[1744302251101,0.063,109.05,109.04,81.02784593]
[1744302251334,0.0001,109.05,109.04,133.80865829]
[1744302251523,0.0001,109.05,109.04,161.90184593]
[1744302251832,0.0001,109.05,109.04,214.68265829]
[1744302252328,0.063,109.1,109.05,39.07613357]
[1744302252625,0.063,109.1,109.07,0.28432314]
[1744302252806,52.84381236,109.1,109.06,27.96101043]
[1744302253132,52.84381236,109.1,109.03,18.79181043]
[1744302253133,52.78081236,109.08,109.03,18.79181043]
[1744302253299,0.063,109.1,109.05,71.57262279]
[1744302253632,52.78081236,109.08,109.03,18.79181043]
[1744302253824,52.84381236,109.1,109.02,9.1726]
[1744302253825,52.78081236,109.07,109.02,9.1726]
[1744302254123,26.0,109.06,109.0,0.14216157]
[1744302254326,52.78081236,109.04,109.0,18.79181043]
[1744302254518,52.78081236,109.03,109.0,27.82344886]
[1744302254722,52.78081236,109.02,108.99,49.32836893]
[1744302254940,61.95101236,109.05,108.99,49.32836893]
[1744302254941,52.78081236,109.01,108.99,49.32836893]
[1744302255432,52.78081236,109.0,108.99,49.32836893]
[1744302255616,52.78081236,109.0,108.96,9.1773]
[1744302255809,2.3482,109.03,108.97,0.14216157]
[1744302256006,52.78081236,109.0,108.97,18.79181043]
[1744302256529,11.52,109.03,108.96,71.57262279]
[1744302256702,2.3482,109.03,108.97,52.78081236]
[1744302256903,78.78081236,109.02,108.98,0.14216157]
[1744302257130,2.3482,109.03,108.98,18.79181043]
[1744302257523,52.78081236,109.0,108.95,0.28432314]
[1744302257711,52.78081236,108.98,108.94,18.79181043]
[1744302258114,11.52,109.03,108.96,52.78081236]
[1744302258629,52.78081236,109.0,108.96,61.95791236]
[1744302258818,2.3482,109.03,108.97,71.57262279]
[1744302259213,52.78081236,109.01,108.97,18.79181043]
[1744302259431,2.3482,109.03,108.97,71.57262279]
[1744302259432,52.78081236,109.02,108.97,71.57262279]
[1744302259621,52.78081236,109.01,108.97,71.57262279]
[1744302259823,52.78081236,109.02,108.97,71.57262279]
[1744302260014,2.3482,109.03,108.97,71.57262279]
[1744302260437,52.78081236,109.01,108.97,18.79181043]
[1744302260727,52.78081236,109.01,108.97,71.57262279]
[1744302260938,52.78081236,108.99,108.97,9.1764]
[1744302261231,52.78081236,108.99,108.96,0.28432314]
[1744302261232,52.78081236,108.99,108.96,9.1776]
[1744302262139,2.3482,109.03,108.97,71.57262279]
[1744302262315,2.3482,109.03,108.98,52.78081236]
[1744302262316,52.78081236,109.02,108.98,52.78081236]
[1744302262514,52.78081236,109.02,108.97,71.57262279]
[1744302262943,52.78081236,109.02,108.99,18.79181043]
[1744302263234,2.3482,109.03,108.99,18.79181043]
[1744302263441,52.78081236,109.02,108.99,18.79181043]
[1744302263627,2.3482,109.03,108.99,18.79181043]
[1744302263815,2.3482,109.03,108.99,71.57262279]
[1744302264015,52.78081236,109.02,108.99,18.79181043]
[1744302264336,2.3482,109.03,108.99,18.79181043]
[1744302264712,55.12901236,109.03,108.99,18.79181043]
[1744302265024,52.78081236,109.04,109.01,18.79181043]
[1744302265208,52.78081236,109.05,109.01,71.57262279]
[1744302265636,52.78081236,109.06,109.01,71.57262279]
[1744302265831,52.78081236,109.06,109.01,18.79181043]
[1744302266038,2.2016,109.07,109.03,18.79181043]
[1744302266229,54.98241236,109.07,109.03,18.79181043]
[1744302266405,0.063,109.1,109.03,0.14216157]
[1744302266613,52.78081236,109.09,109.05,0.14216157]
[1744302266808,52.78081236,109.07,109.05,9.31146157]
[1744302267015,52.78081236,109.06,109.03,18.64964886]
[1744302267339,52.78081236,109.08,109.04,19.07613357]
[1744302267643,26.0,109.09,109.04,19.07613357]
[1744302267844,52.78081236,109.08,109.04,19.07613357]
[1744302268142,26.0,109.09,109.04,18.79181043]
[1744302268317,26.0,109.09,109.03,9.1717]
[1744302268648,26.0,109.09,109.04,71.57262279]
[1744302268818,52.78081236,109.07,109.03,9.1717]
[1744302269137,52.78081236,109.06,109.03,9.1717]
[1744302269328,35.1667,109.09,109.03,9.1717]
[1744302269329,52.78081236,109.07,109.03,9.1717]
[1744302269534,26.0,109.09,109.03,9.1717]
[1744302269844,52.78081236,109.07,109.03,9.1717]
[1744302270031,52.78081236,109.08,109.04,19.07613357]
[1744302270353,52.78081236,109.06,109.03,9.1717]
[1744302270517,52.78081236,109.06,109.01,0.28432314]
[1744302270518,35.1668,109.09,108.99,50.90471043]
[1744302270846,52.78081236,109.05,109.03,9.1717]
[1744302271143,52.78081236,109.04,109.01,18.79181043]
[1744302271327,26.0,109.07,109.02,52.78081236]